[Event "Marshall CC U2400 April 2024"]
[Site "New York"]
[Date "2024.04.21"]
[Round "4.5"]
[White "Knowles, Chase"]
[Black "Solomon, William C."]
[Result "1-0"]
[ECO "D94"]
[WhiteElo "1978"]
[BlackElo "1402"]
[Annotator "TA"]
[PlyCount "120"]
[EventDate "2024.04.20"]
[EventType "swiss"]
[EventCountry "USA"]
[SourceTitle "playchess.com"]
[Source "ChessBase"]
[SourceQuality "1"]
[TimeControl "5400+30"]

{[%evp 13,120,-6,-1,-43,0,0,0,0,1,-33,-26,-25,-31,-27,-38,-36,0,0,0,0,18,13,41,36,51,0,24,-38,68,68,75,0,0,0,0,0,0,-100,18,0,30,0,0,4,0,24,21,29,31,14,615,679,595,388,287,108,642,63,102,94,73,72,86,81,237,62,80,77,97,91,98,78,785,796,782,758,800,792,743,721,3645,2119,1143,4170,3018,1897,1224,438,8003,8003,9684,12841,12728,12325,8003,8003,12280,11624,12812,29948,8457,8457,29948,29956,29959,12850,7290,7276,471]} 1. Nf3 {[%emt 0:07:19]} g6 {[%emt 0:00:34]} 2. c4 {[%emt 0:00:16]} Bg7 {[%emt 0:00:23]} 3. d4 {[%emt 0:00:20]} Nf6 {[%emt 0:01:11]} 4. Nc3 {[%emt 0:00:10]} d5 {[%emt 0:00:13]} 5. e3 {[%emt 0:02:26]} O-O {[%emt 0:00:49]} 6. b4 {[%emt 0:03:58]} c6 {[%emt 0:00:41]} 7. Bb2 {[%emt 0:01:07]} Bg4 {[%emt 0:01:18]} 8. c5 {[%emt 0:00:32]} Ne4 {[%emt 0:01:10]} (8... e5 $5 9. dxe5 Nfd7 $14) 9. h3 {[%emt 0:03:14]} Nxc3 {[%emt 0:00:24]} 10. Bxc3 {[%emt 0:00:10] The position is equal.} Bxf3 {[%emt 0:00:14]} 11. Qxf3 {[%emt 0:02:50]} Nd7 {[%emt 0:00:17][%cal Oa7a5]} 12. Qd1 {[%emt 0:02:56] [#]} a5 $1 {[%emt 0:00:12]} 13. a3 $1 {[%emt 0:00:28]} axb4 {[%emt 0:00:40]} 14. axb4 {[%emt 0:00:08]} Rxa1 {[%emt 0:00:57]} 15. Qxa1 {[%emt 0:02:31]} Qa8 {[%emt 0:00:09]} 16. Qb2 {[%emt 0:12:18]} b5 {[%emt 0:00:42]} 17. Bd3 {[%emt 0:07:29]} Qa6 {[%emt 0:01:53]} 18. O-O {[%emt 0:00:16]} Ra8 {[%emt 0:00:33]} 19. Qe2 {[%emt 0:02:24]} (19. g4 $14) 19... Qb7 {[%emt 0:02:18]} 20. e4 {[%emt 0:02:02]} ({White should play} 20. Rd1 $11) 20... e6 {[%emt 0:05:00]} (20... dxe4 $1 $15 21. Bxe4 Nf6) 21. e5 $14 {[%emt 0:04:59]} Ra3 {[%emt 0:04:48]} 22. Rc1 {[%emt 0:00:22]} (22. Bb2 $16 Ra4 23. Qd2) 22... Bh6 $11 {[%emt 0:02:07]} 23. Rc2 {[%emt 0:00:26]} Qa6 {[%emt 0:02:35][%cal Oa3c3]} 24. Kh2 {[%emt 0:01:21]} Qa4 {[%emt 0:08:28][%cal Oa3c3] White must now prevent ...Rxc3!} 25. g3 {[%emt 0:02:50] [#]} (25. Be1 $11) 25... Qb3 {[%emt 0:02:02]} ({Better is} 25... Rxc3 $1 $17 26. Rxc3 Qxb4) 26. f4 {[%emt 0:07:12]} Nb8 {[%emt 0:02:34]} 27. f5 {[%emt 0:01:28]} gxf5 {[%emt 0:02:59]} (27... exf5 $2 28. e6 Na6 29. e7 $18) 28. g4 {[%emt 0:01:03]} f4 {[%emt 0:15:00]} 29. g5 $36 {[%emt 0:01:07][%mdl 2048] White has good play.} Bg7 {[%emt 0:00:34]} (29... Bxg5 30. Qg2 h6 31. h4 $18) 30. h4 {[%emt 0:01:43][%mdl 1024] White has compensation.} (30. Qh5 {is interesting.} Nd7 31. Qh4 f3 32. Qf2) 30... Na6 {[%emt 0:00:18]} 31. Qd2 $1 {[%emt 0:00:50]} (31. Qh5 Nxb4 32. Qxh7+ Kf8 $19) 31... Ra4 $2 {[%emt 0:19:36][%mdl 8192]} (31... h6 $11) 32. Rb2 $18 {[%emt 0:04:41]} Qa3 {[%emt 0:00:58]} 33. Bc2 {[%emt 0:00:53]} Rxb4 {[%emt 0:01:03]} 34. Bxb4 {[%emt 0:00:43]} (34. Ra2 $1 $18 {[%cal Ra2a3] is the precise move to win.} Qxa2 35. Bxh7+ (35. Bxb4 $2 Nxb4 36. Qxf4 Nxc2 $19) 35... Kxh7 36. Qxa2) 34... Nxb4 $4 {[%emt 0:01:10][%mdl 8192]} (34... Qg3+ $16 35. Kh1 Nxb4) 35. Rxb4 $2 {[%emt 0:02:27]} (35. Rb3 $18 Nxc2 36. Rxa3 Nxa3 37. h5 (37. Qxf4 b4 $18)) 35... Qg3+ $14 {[%emt 0:00:11]} 36. Kh1 {[%emt 0:00:04][%cal Bh2h1,Bh1g1,Bg1f1,Bf1f2,Bf2e3,Be3d3][%mdl 32]} Qxh4+ {[%emt 0:00:23]} 37. Kg1 {[%emt 0:00:30] Threatens to win with Rb3.} Qg3+ {[%emt 0:00:56]} 38. Kf1 {[%emt 0:00:08] And now Rb3 would win.} f3 $2 {[%emt 0:02:29]} (38... Qh3+ $16 39. Qg2 Qc3) 39. Rb3 $2 {[%emt 0:04:24]} (39. Qf2 $18 Qxg5 40. Rb1 (40. Qxf3 Qd2 $11)) 39... Qh3+ {[%emt 0:00:25]} 40. Kf2 {[%emt 0:00:23]} Qg2+ {[%emt 0:00:08]} 41. Ke3 {[%emt 0:00:34] Qxg2 is the strong threat.} Qxg5+ {[%emt 0:00:46]} 42. Kd3 {[%emt 0:00:29] Some like it hot} Qg2 {[%emt 0:01:10][%mdl 8192]} ({Don't go for} 42... Qxd2+ $2 43. Kxd2 f6 44. Rxb5 $18 (44. Rxf3 fxe5 45. Ra3 e4 $18)) (42... Qh4 $16) 43. Qxg2 $18 {[%emt 0:00:20]} fxg2 {[%emt 0:00:20]} 44. Rb1 {[%emt 0:00:02]} f6 {[%emt 0:01:30]} 45. exf6 {[%emt 0:00:12]} Bxf6 {[%emt 0:00:05]} 46. Rg1 {[%emt 0:00:01]} e5 {[%emt 0:00:10]} 47. Rxg2+ {[%emt 0:00:12]} Kf7 {[%emt 0:00:09]} 48. dxe5 {[%emt 0:00:14]} Bxe5 {[%emt 0:00:08]} 49. Bb3 {[%emt 0:01:35]} Ke6 {[%emt 0:02:16]} 50. Rg5 {[%emt 0:00:26]} (50. Bd1 $142 {Hoping for Bg4+.} Kd7 51. Bg4+ Kc7 52. Rf2) 50... Bf4 {[%emt 0:00:48]} (50... Bb2 $142 51. Rg2 Bc1) 51. Rg7 {[%emt 0:00:43]} h6 {[%emt 0:01:09]} 52. Rg6+ {[%emt 0:00:03]} Kd7 {[%emt 0:00:08]} 53. Bd1 {[%emt 0:00:06]} Bg5 {[%emt 0:00:50]} 54. Kc3 {[%emt 0:00:36]} Be3 {[%emt 0:01:08]} 55. Bg4+ {[%emt 0:01:48]} Kc7 {[%emt 0:02:33]} 56. Rg7+ {[%emt 0:00:35]} Kb8 {[%emt 0:00:43]} 57. Bd7 {[%emt 0:00:24]} Bxc5 {[%emt 0:00:50]} 58. Bxc6 {[%emt 0:00:17]} b4+ {[%emt 0:00:08]} 59. Kd3 {[%emt 0:00:26]} h5 {[%emt 0:01:06]} 60. Rh7 {[%emt 0:01:25]} h4 {[%emt 0:00:07] Weighted Error Value: White=0.58/Black=0.43.  Loses game:     	---       	Black=3      Missed win:     	White=3     	---        Mistake:       	White=4     	Black=3      Inaccurate:     	White=2     	Black=4      OK:         	White=9     	Black=17     Best:        	White=6     	Black=2      Strong:       	White=2     	---} 1-0

[Event "Marshall CC U2400 April 2024"]
[Site "New York"]
[Date "2024.04.22"]
[Round "5.1"]
[White "Hoffman, Luc"]
[Black "Sarkar, Justin"]
[Result "1-0"]
[ECO "D04"]
[WhiteElo "2006"]
[BlackElo "2279"]
[Annotator "TA"]
[PlyCount "109"]
[EventDate "2024.04.20"]
[EventType "swiss"]
[EventCountry "USA"]
[SourceTitle "playchess.com"]
[Source "ChessBase"]
[SourceQuality "1"]
[TimeControl "5400+30"]

{[%evp 17,109,0,0,-10,-19,-14,1,0,0,8,0,-26,-34,-22,-8,-16,-22,-24,-23,-23,-22,-37,-25,-25,-25,-22,-16,-16,-26,-17,-17,-85,-88,-116,-114,-114,0,-89,0,-113,-113,-115,-96,-99,-101,-142,-136,-133,-118,-156,-150,-178,-180,-160,-142,-153,-147,-178,-179,-177,-191,-292,-284,-250,-200,-544,-564,-574,-577,-566,-535,-612,-612,-846,-870,-870,-867,-974,-908,-3794,-1283,-9021,-29956,-29963,-29959,-29973,-29975,-29973,-29971,-29979,-29980,-29978,-29980,-29994]} 1. Nf3 {[%emt 0:00:03]} Nf6 {[%emt 0:00:59]} 2. e3 {[%emt 0:00:08]} g6 {[%emt 0:06:05]} 3. b3 {[%emt 0:00:23]} Bg7 {[%emt 0:02:32]} 4. Bb2 {[%emt 0:00:06]} O-O {[%emt 0:00:18]} 5. c4 {[%emt 0:00:24]} c5 {[%emt 0:02:00]} 6. Be2 {[%emt 0:00:35]} Nc6 {[%emt 0:05:47]} 7. O-O {[%emt 0:04:11]} d5 {[%emt 0:00:19]} 8. cxd5 {[%emt 0:01:09]} Qxd5 {[%emt 0:00:09]} 9. d4 {[%emt 0:05:09]} Ne4 {[%emt 0:02:12]} 10. Nc3 {[%emt 0:02:42]} Nxc3 {[%emt 0:00:08]} 11. Bxc3 {[%emt 0:00:01]} cxd4 {[%emt 0:00:57]} 12. Nxd4 {[%emt 0:00:23] The position is equal.} Nxd4 {[%emt 0:00:28]} 13. Bxd4 {[%emt 0:00:16]} Bxd4 {[%emt 0:00:10]} 14. Qxd4 {[%emt 0:00:04]} Qxd4 {[%emt 0:00:07]} 15. exd4 {[%emt 0:00:04]} Rd8 {[%emt 0:35:59]} 16. Rfd1 {[%emt 0:01:33]} Be6 {[%emt 0:00:08]} 17. Rac1 {[%emt 0:03:00]} Rac8 {[%emt 0:01:40]} 18. Rxc8 {[%emt 0:00:10]} Rxc8 $11 {[%emt 0:00:07][%mdl 4096] Endgame. KRB-KRB} 19. d5 {[%emt 0:00:09]} Bf5 {[%emt 0:00:19]} 20. Bc4 {[%emt 0:03:05]} a6 {[%emt 0:01:30]} 21. Kf1 {[%emt 0:02:31]} b5 {[%emt 0:04:09]} 22. Bd3 {[%emt 0:00:11]} Bxd3+ {[%emt 0:00:09]} 23. Rxd3 {[%emt 0:00:01] KR-KR} Rc2 {[%emt 0:00:08]} 24. Re3 {[%emt 0:00:24]} (24. a3 $1 $11 {keeps the balance.}) 24... Kf8 $17 {[%emt 0:03:38]} ({Reject} 24... Rxa2 25. Rxe7 Kf8 26. Ra7 $11) 25. Re2 {[%emt 0:01:07]} Rc1+ {[%emt 0:00:04]} 26. Re1 {[%emt 0:00:01]} Rc2 {[%emt 0:00:08]} 27. Re2 $1 {[%emt 0:00:01]} Rc1+ {[%emt 0:00:24]} 28. Re1 {[%emt 0:00:02]} Rc5 {[%emt 0:00:06]} 29. Rd1 {[%emt 0:12:00]} Ke8 {[%emt 0:00:07]} (29... Rc2 {simplifies} 30. d6 exd6 31. Rxd6 Rxa2 32. Rb6 g5) 30. d6 {[%emt 0:08:56]} e6 {[%emt 0:00:16]} 31. d7+ {[%emt 0:01:56]} Kd8 {[%emt 0:00:02]} 32. Rd2 {[%emt 0:07:45]} b4 {[%emt 0:07:48]} 33. g4 {[%emt 0:02:26]} Rd5 {[%emt 0:01:22]} 34. Ke2 {[%emt 0:06:43]} ({Not} 34. Rxd5 $2 exd5 35. g5 f6 (35... Kxd7 $2 36. Ke2 $19) 36. gxf6 Kxd7 $19) 34... Kxd7 {[%emt 0:07:24]} (34... Rxd7 35. Rxd7+ Kxd7 36. Kd3 $15) 35. Rc2 {[%emt 0:08:19]} g5 {[%emt 0:06:29]} 36. Rc4 {[%emt 0:00:49]} a5 {[%emt 0:00:31]} 37. f4 {[%emt 0:00:28]} h6 {[%emt 0:02:06]} 38. Ke3 {[%emt 0:00:38]} Kd6 {[%emt 0:00:22]} 39. fxg5 {[%emt 0:00:20]} (39. Rc8 {keeps fighting.}) 39... hxg5 $19 {[%emt 0:00:05]} 40. Rc8 {[%emt 0:00:38]} Rc5 {[%emt 0:00:24]} 41. Ra8 {[%emt 0:01:09]} (41. Rf8 {nothing else works.}) 41... Ke5 {[%emt 0:00:52]} 42. Ra7 {[%emt 0:00:11]} Rc3+ {[%emt 0:08:04]} 43. Kd2 {[%emt 0:00:32]} Rh3 {[%emt 0:00:05]} 44. Rxa5+ {[%emt 0:00:05]} Kf4 {[%emt 0:00:35]} 45. Ra4 {[%emt 0:00:24]} Rxh2+ {[%emt 0:00:06]} 46. Kd3 {[%emt 0:00:04]} Kxg4 {[%emt 0:03:28] Strongly threatening ...Kf3.} 47. Rxb4+ {[%emt 0:00:09]} Kf3 {[%emt 0:00:02]} 48. a4 {[%emt 0:02:10]} g4 {[%emt 0:00:05] ( -> ...g3)} 49. a5 {[%emt 0:00:21]} g3 {[%emt 0:01:12]} 50. a6 {[%emt 0:00:46] [#] Black mates.} Rh8 $1 {[%emt 0:00:50]} 51. a7 {[%emt 0:00:08]} Ra8 {[%emt 0:00:08]} 52. Rb7 {[%emt 0:00:02]} f5 {[%emt 0:00:11]} 53. b4 {[%emt 0:00:15]} g2 {[%emt 0:00:05]} 54. Rg7 {[%emt 0:00:04] [#]} Rxa7 $3 {[%emt 0:00:26][%mdl 512]} 55. Kd4 {[%emt 0:32:49][%mdl 32768] Weighted Error Value: White=0.40/Black=0.07 (flawless) .  Mistake:       	White=3     	---        Inaccurate:     	White=6     	---        OK:         	White=7     	Black=18     Best:        	White=1     	Black=3      Strong:       	White=1     	---       . Sensor Board Error (Ke4/e5)?} (55. Rxa7 g1=Q) 1-0

[Event "Marshall CC U2400 April 2024"]
[Site "New York"]
[Date "2024.04.22"]
[Round "5.2"]
[White "Panico, Nick"]
[Black "Kozower, Ethan"]
[Result "0-1"]
[ECO "A03"]
[WhiteElo "1952"]
[BlackElo "1943"]
[Annotator "TA"]
[PlyCount "182"]
[EventDate "2024.04.20"]
[EventType "swiss"]
[EventCountry "USA"]
[SourceTitle "playchess.com"]
[Source "ChessBase"]
[SourceQuality "1"]
[TimeControl "5400+30"]

{[%evp 9,182,0,14,0,24,-3,6,6,19,14,25,21,39,30,51,51,47,65,28,46,62,65,89,97,91,80,112,110,94,41,60,57,112,117,134,74,175,191,162,164,182,192,179,193,380,387,404,21,33,55,38,23,23,22,23,39,87,50,131,133,568,516,541,522,598,209,232,210,217,212,192,184,326,154,138,143,130,0,0,0,0,-69,-45,-64,-66,-121,-121,-121,-121,-174,-129,-129,-129,-129,-121,-204,-196,-189,-189,-189,-189,-174,-167,-12357,-12357,-1529,-1465,-1372,-1347,-1237,-993,-12374,-12374,-29942,-29942,-29944,-29943,-29945,-29946,-29946,-29948,-29948,-29949,-29948,-29941,-29942,-29943,-29947,-5911,-29945,-29948,-29949,-29949,-12850,-5065,-29942,-12845,-29955,-29953,-29961,-29960,-29961,-29962,-29970,-29971,-29971,-29972,-29977,-29978,-29979,-29980,-29980,-29975,-29973,0,-29973,-29959,-29959,-29957,-29989,-29984,-29990,-29991,-29992,-29993,-29993,-29989,-29993,-29993,-29993,-29987,-29989,-29988,-29988,-29989]} 1. f4 {[%emt 0:01:12]} e6 {[%emt 0:00:55]} 2. Nf3 {[%emt 0:00:07]} Nf6 {[%emt 0:01:03]} 3. g3 {[%emt 0:00:14]} d5 {[%emt 0:01:26]} 4. Bg2 {[%emt 0:00:18]} Bd6 {[%emt 0:04:25]} 5. b3 {[%emt 0:02:38]} c5 {[%emt 0:04:31]} 6. Bb2 {[%emt 0:00:43]} Nc6 {[%emt 0:02:12]} 7. e3 {[%emt 0:04:24]} O-O {[%emt 0:12:23]} 8. O-O {[%emt 0:01:59] The position is equal.} b6 {[%emt 0:08:59]} 9. Qe2 {[%emt 0:05:57]} Bb7 {[%emt 0:00:35]} 10. c4 {[%emt 0:02:11]} d4 {[%emt 0:06:54]} 11. Na3 {[%emt 0:09:42]} Rb8 {[%emt 0:15:03]} 12. Nb5 $1 {[%emt 0:23:43]} a6 {[%emt 0:20:00]} 13. Nxd6 {[%emt 0:00:32]} Qxd6 {[%emt 0:00:01]} 14. exd4 {[%emt 0:04:32]} cxd4 {[%emt 0:00:06]} 15. Ne5 {[%emt 0:02:22]} d3 {[%emt 0:08:58]} 16. Qe3 {[%emt 0:04:05]} Nb4 {[%emt 0:00:13]} 17. Ba3 {[%emt 0:04:44] A strong pair of Bishops.} a5 {[%emt 0:06:25]} 18. Bxb7 {[%emt 0:01:39]} Rxb7 {[%emt 0:00:13]} 19. Rac1 {[%emt 0:07:19]} (19. Bxb4 $16 Qxb4 20. Qxd3 (20. Nxd3 Qa3 $16)) 19... Rd8 $14 {[%emt 0:00:28]} 20. Rc3 {[%emt 0:03:23][%cal Oc3d3]} Qd4 {[%emt 0:02:40]} ({Black should play} 20... Qc5 $14) 21. Qxd4 $16 {[%emt 0:06:42]} Rxd4 {[%emt 0:00:02]} 22. Rf3 {[%emt 0:02:14]} (22. Bxb4 $142 {Ba3 is the strong threat.} axb4 23. Rxd3 Rxd3 24. Nxd3) 22... Nxa2 {[%emt 0:02:17]} (22... Nd7 $16) 23. Rcxd3 $18 {[%emt 0:00:10]} Rxd3 {[%emt 0:00:02]} 24. Rxd3 {[%emt 0:00:03]} h6 {[%emt 0:00:52]} 25. Rd8+ {[%emt 0:02:34]} Kh7 {[%emt 0:00:00]} 26. Rf8 {[%emt 0:00:23]} Ne4 $2 {[%emt 0:00:43]} (26... Nb4 27. Bxb4 (27. Nxf7 Nc6 $16) (27. Rxf7 Rxf7 28. Nxf7 Nc2 $16) 27... axb4 28. Nxf7 (28. Rxf7 Rxf7 29. Nxf7 Ne4 $18) 28... Ra7) 27. Nxf7 {[%emt 0:02:15] Hoping for Rh8+.} ({Not} 27. Rxf7 Rxf7 28. Nxf7 Nxd2 $11) 27... Nxd2 {[%emt 0:00:16][%cal Oa2b4]} 28. Rh8+ $2 {[%emt 0:00:10]} ({White has to play} 28. g4 $18 {White wants to mate with Rh8+.} Kg6 29. Ne5+ Kh7 30. g5 hxg5 31. fxg5) 28... Kg6 $14 {[%emt 0:00:01]} 29. Ne5+ {[%emt 0:00:08]} Kf5 {[%emt 0:00:06]} 30. Kf2 {[%emt 0:02:46]} Ke4 {[%emt 0:01:47][%cal Oa2b4]} 31. Re8 {[%emt 0:02:00]} Nxb3 {[%emt 0:00:27]} 32. Rxe6 {[%emt 0:00:05]} Kf5 {[%emt 0:00:44]} (32... Nc3 $14) 33. Re8 {[%emt 0:00:20] Strongly threatening Ke3.} Nc3 {[%emt 0:01:25]} (33... Nb4 $14) 34. Ke3 $16 {[%emt 0:00:59]} Nb1 $2 {[%emt 0:00:15][%mdl 8192]} (34... Nd1+ $16 {is a better chance.} 35. Ke2 Nc3+ 36. Ke3 Nd1+ 37. Kd3 Nf2+ 38. Kc3 a4) 35. g4+ $18 {[%emt 0:00:28]} Kf6 {[%emt 0:00:08]} 36. Bb2 {[%emt 0:01:30]} a4 {[%emt 0:01:14]} 37. Ra8 $2 {[%emt 0:02:00]} (37. h4 {f5 would kill now.} Re7 38. Rf8+ Ke6 39. Rd8) 37... a3 {[%emt 0:00:26]} 38. Bxa3 {[%emt 0:00:10]} Nxa3 {[%emt 0:00:04]} 39. Rxa3 {[%emt 0:00:02][%mdl 4096] Endgame. KRN-KRN} Nc5 {[%emt 0:00:22]} 40. Ra8 {[%emt 0:00:09]} g5 {[%emt 0:00:27] [#]} (40... Ne6 {might work better.} 41. Ke4 b5) 41. Rf8+ {[%emt 0:01:19]} (41. Rg8 $1 $18 {[%cal Rg8g6] is the precise move to win. Threatens to win with Rg6+.} Rg7 42. Rh8 gxf4+ 43. Kxf4 Ne6+ 44. Ke4) 41... Kg7 $16 {[%emt 0:00:33] [#]} 42. Rc8 {[%emt 0:00:11] Black must now prevent f5.} Re7 {[%emt 0:00:42]} 43. Rb8 {[%emt 0:00:46]} ({White should try} 43. Rc6 $16) 43... gxf4+ $11 {[%emt 0:00:53]} 44. Kxf4 {[%emt 0:00:59][%cal Ob8c8]} Rxe5 {[%emt 0:00:32]} 45. Rxb6 {[%emt 0:00:04] KRN-KR} (45. Kxe5 $11 Nd7+ 46. Kd6 Nxb8 47. Kc7 Na6+ 48. Kxb6) 45... Re7 {[%emt 0:00:35]} 46. h4 {[%emt 0:00:33]} Nd3+ {[%emt 0:00:12]} 47. Kf3 {[%emt 0:01:12]} (47. Kg3 $1 $15) 47... Ne5+ $17 {[%emt 0:00:11]} 48. Kf4 {[%emt 0:00:23]} Nxc4 {[%emt 0:00:11]} 49. Rc6 {[%emt 0:00:34]} (49. Ra6 $17) 49... Ne5 {[%emt 0:00:56]} 50. Rc3 {[%emt 0:00:34]} Ng6+ {[%emt 0:00:10]} 51. Kg3 {[%emt 0:00:06]} Rf7 {[%emt 0:00:57]} 52. h5 {[%emt 0:00:12]} (52. Rc5 $17 {was worth a try.}) 52... Nf4 {[%emt 0:00:35]} 53. Rc6 {[%emt 0:03:15]} Ne2+ {[%emt 0:00:30]} 54. Kh4 {[%emt 0:00:00]} Nd4 {[%emt 0:00:02]} 55. Rg6+ {[%emt 0:00:00]} Kh7 {[%emt 0:00:01]} 56. g5 $2 {[%emt 0:00:00]} (56. Kg3) 56... Nf3+ $19 {[%emt 0:00:51]} 57. Kg3 {[%emt 0:00:31]} Nxg5 {[%emt 0:00:11][%cal Of7f6]} 58. Ra6 {[%emt 0:00:05]} Ne4+ {[%emt 0:00:23]} 59. Kg4 {[%emt 0:00:13]} Nf6+ {[%emt 0:01:20]} 60. Kh4 {[%emt 0:00:09]} Kg7 {[%emt 0:00:26] ( -> ...Rd7)} 61. Rb6 {[%emt 0:00:09]} Re7 {[%emt 0:00:34]} 62. Rb5 {[%emt 0:00:29]} Kf7 {[%emt 0:00:37]} 63. Ra5 {[%emt 0:00:15]} Rd7 {[%emt 0:00:23]} 64. Rb5 {[%emt 0:00:15]} Rd5 {[%emt 0:00:55]} 65. Rb7+ {[%emt 0:00:19]} Ke6 {[%emt 0:00:28]} 66. Rb6+ {[%emt 0:00:00]} Ke7 {[%emt 0:00:07]} 67. Rb7+ {[%emt 0:00:07]} Kd8 {[%emt 0:00:37]} 68. Rf7 {[%emt 0:00:39]} Rxh5+ {[%emt 0:00:17]} 69. Kg3 {[%emt 0:00:03]} Rf5 {[%emt 0:00:24]} 70. Ra7 {[%emt 0:00:16]} Nd7 {[%emt 0:00:58]} 71. Kg4 {[%emt 0:00:08]} Rc5 {[%emt 0:00:28]} 72. Ra6 {[%emt 0:00:14]} h5+ {[%emt 0:00:29]} 73. Kh4 {[%emt 0:00:00]} Ke7 {[%emt 0:00:17]} 74. Rg6 {[%emt 0:00:35]} Nf6 {[%emt 0:00:20]} 75. Rg7+ {[%emt 0:00:23]} Ke6 {[%emt 0:00:06]} 76. Rg1 {[%emt 0:00:04]} Rc4+ {[%emt 0:00:12]} 77. Kh3 {[%emt 0:00:16]} Kf5 {[%emt 0:00:53]} 78. Rf1+ {[%emt 0:00:24]} Kg5 {[%emt 0:00:18]} 79. Ra1 {[%emt 0:00:05]} Rc3+ {[%emt 0:00:21]} 80. Kg2 {[%emt 0:00:02]} Kg4 {[%emt 0:01:44]} 81. Ra4+ {[%emt 0:00:03]} Kg5 $2 {[%emt 0:00:08]} (81... Kf5 {mates} 82. Ra5+ Kf4 83. Kh2 Ng4+ 84. Kg1 Rc1+ 85. Kg2 Rc2+ 86. Kh1 Nf2+ 87. Kg2 Ne4+ 88. Kf1 h4 89. Ra3 Ng5 90. Ke1 h3 91. Kd1 Rg2 92. Ra8 h2 93. Rh8 Rg1+ 94. Kd2 h1=Q (94... h1=R {is a self mate.} 95. Rf8+ Ke5 96. Kc2 Rg2+ 97. Kd3 Rh3+ 98. Kc4 Rg4+ 99. Kb5 Rb3+ 100. Ka5 Rg1 101. Ka4 Rb7 102. Re8+ Ne6 103. Rxe6+ Kxe6 104. Ka5 Ra1#) 95. Rxh1 Rxh1 96. Kd3 Ne6 97. Kc4 Ke4 98. Kb4 Rh3 99. Kc4 Rg3 100. Kb4 Kd5 101. Kb5 Rb3+ 102. Ka4 Kc4 103. Ka5 Rb7 104. Ka6 Nc5+ 105. Ka5 Rb5#) 82. Ra5+ $2 {[%emt 0:00:05][%mdl 8192]} (82. Ra1 $11 h4 83. Kg1) 82... Kh4 {[%emt 0:00:03] Black mates.} 83. Ra1 {[%emt 0:00:56]} Rg3+ {[%emt 0:00:26]} 84. Kh2 {[%emt 0:00:52]} Ng4+ {[%emt 0:00:38]} 85. Kh1 {[%emt 0:00:03]} Kh3 {[%emt 0:00:31][%cal Rg4f2]} 86. Ra2 {[%emt 0:00:18]} Rb3 {[%emt 0:00:14][%cal Rb3b1]} 87. Ra1 {[%emt 0:00:49]} h4 {[%emt 0:00:37]} 88. Rf1 {[%emt 0:00:56]} Rd3 {[%emt 0:01:14]} 89. Ra1 {[%emt 0:00:25]} Nf2+ {[%emt 0:00:38]} 90. Kg1 {[%emt 0:00:02]} Rd1+ {[%emt 0:00:16]} 91. Rxd1 {[%emt 0:00:12]} Nxd1 {[%emt 0:01:28] A wild game.   Weighted Error Value: White=0.58/Black=0.34.  Loses game:     	---       	Black=1      Missed win:     	White=2     	---        Mistake:       	White=9     	Black=6      Inaccurate:     	White=2     	Black=1      OK:         	White=14    	Black=11     Best:        	White=6     	Black=8      Strong:       	White=1     	---} 0-1